[Event "Titled Tuesday Blitz February 21 Late 2023"]
[White "Rorrer, Grayson"]
[Black "Zochowski, Kacper"]
[WhiteFideId "30944996"]
[BlackFideId "1125494"]
[WhiteElo "2263"]
[BlackElo "2262"]
[Result "1-0"]
[Round "07"]
[TimeControl "180+2"]
[Date "2023.02.21"]
[WhiteClock "0:00:03"]
[BlackClock "0:00:02"]

1. c4 {[%clk 0:03:00]}  e5 {[%clk 0:02:55]} 2. Nc3 {[%clk 0:02:59]}  d6 {[%clk 0:02:50]} 3. e3 {[%clk 0:02:59]}  Be6 {[%clk 0:02:50]} 4. Nf3 {[%clk 0:02:59]}  Qd7 {[%clk 0:02:50]} 5. d4 {[%clk 0:02:57]}  exd4 {[%clk 0:02:49]} 6. Nxd4 {[%clk 0:02:57]}  Bg4 {[%clk 0:02:50]} 7. Qb3 {[%clk 0:02:56]}  c6 {[%clk 0:02:47]} 8. h3 {[%clk 0:02:56]}  Bh5 {[%clk 0:02:46]} 9. Bd3 {[%clk 0:02:57]}  Bg6 {[%clk 0:02:45]} 10. Be2 {[%clk 0:02:57]}  Na6 {[%clk 0:02:45]} 11. Bg4 {[%clk 0:02:55]}  Qc7 {[%clk 0:02:43]} 12. O-O {[%clk 0:02:52]}  Nf6 {[%clk 0:02:43]} 13. Bf3 {[%clk 0:02:51]}  Nc5 {[%clk 0:02:43]} 14. Qd1 {[%clk 0:02:47]}  a5 {[%clk 0:02:43]} 15. b3 {[%clk 0:02:44]}  Be7 {[%clk 0:02:40]} 16. Bb2 {[%clk 0:02:45]}  O-O {[%clk 0:02:40]} 17. Be2 {[%clk 0:02:38]}  Nfe4 {[%clk 0:02:39]} 18. Rc1 {[%clk 0:02:38]}  Nxc3 {[%clk 0:02:38]} 19. Bxc3 {[%clk 0:02:39]}  Bf6 {[%clk 0:02:38]} 20. a3 {[%clk 0:02:38]}  Rfe8 {[%clk 0:02:37]} 21. Bb2 {[%clk 0:02:29]}  a4 {[%clk 0:02:33]} 22. b4 {[%clk 0:02:29]}  Nb3 {[%clk 0:02:34]} 23. Rc3 {[%clk 0:02:23]}  Nxd4 {[%clk 0:02:31]} 24. exd4 {[%clk 0:02:24]}  c5 {[%clk 0:02:11]} 25. Rf3 {[%clk 0:01:51]}  Bxd4 {[%clk 0:01:47]} 26. Bxd4 {[%clk 0:01:49]}  cxd4 {[%clk 0:01:48]} 27. Rf4 {[%clk 0:01:44]}  Qe7 {[%clk 0:01:21]} 28. Bd3 {[%clk 0:01:38]}  Qe5 {[%clk 0:01:19]} 29. g3 {[%clk 0:01:30]}  d5 {[%clk 0:00:57]} 30. c5 {[%clk 0:01:20]}  Be4 {[%clk 0:00:56]} 31. Re1 {[%clk 0:01:07]}  f5 {[%clk 0:00:46]} 32. h4 {[%clk 0:01:03]}  h6 {[%clk 0:00:35]} 33. h5 {[%clk 0:00:55]}  Qf6 {[%clk 0:00:21]} 34. Bb5 {[%clk 0:00:51]}  Re7 {[%clk 0:00:17]} 35. Qd2 {[%clk 0:00:30]}  d3 {[%clk 0:00:05]} 36. Bxd3 {[%clk 0:00:21]}  Qd4 {[%clk 0:00:05]} 37. Rd1 {[%clk 0:00:21]}  Rd8 {[%clk 0:00:01]} 38. Bb5 {[%clk 0:00:13]}  Qxd2 {[%clk 0:00:02]} 39. Rxd2 {[%clk 0:00:14]}  d4 {[%clk 0:00:01]} 40. Bxa4 {[%clk 0:00:14]}  d3 {[%clk 0:00:02]} 41. Bb3+ {[%clk 0:00:14]}  Bd5 {[%clk 0:00:02]} 42. Bxd5+ {[%clk 0:00:07]}  Rxd5 {[%clk 0:00:02]} 43. Kf1 {[%clk 0:00:08]}  Ree5 {[%clk 0:00:03]} 44. Rf3 {[%clk 0:00:08]}  Re4 {[%clk 0:00:03]} 45. Rfxd3 {[%clk 0:00:07]}  Rde5 {[%clk 0:00:04]} 46. Rd8+ {[%clk 0:00:06]}  Kh7 {[%clk 0:00:05]} 47. R8d7 {[%clk 0:00:07]}  Re1+ {[%clk 0:00:05]} 48. Kg2 {[%clk 0:00:07]}  Ra1 {[%clk 0:00:06]} 49. Rxb7 {[%clk 0:00:07]}  Ree1 {[%clk 0:00:06]} 50. Rdd7 {[%clk 0:00:07]}  Rg1+ {[%clk 0:00:07]} 51. Kf3 {[%clk 0:00:07]}  Rxa3+ {[%clk 0:00:07]} 52. Kf4 {[%clk 0:00:08]}  Rf1 {[%clk 0:00:08]} 53. Rxg7+ {[%clk 0:00:07]}  Kh8 {[%clk 0:00:08]} 54. Rgc7 {[%clk 0:00:04]}  Rxf2+ {[%clk 0:00:09]} 55. Ke5 {[%clk 0:00:05]}  Re2+ {[%clk 0:00:07]} 56. Kxf5 {[%clk 0:00:03]}  Rf2+ {[%clk 0:00:07]} 57. Ke4 {[%clk 0:00:03]}  Re2+ {[%clk 0:00:06]} 58. Kd4 {[%clk 0:00:03]}  Ra8 {[%clk 0:00:04]} 59. Rh7+ {[%clk 0:00:03]}  Kg8 {[%clk 0:00:05]} 60. Rxh6 {[%clk 0:00:03]}  Rd2+ {[%clk 0:00:05]} 61. Kc4 {[%clk 0:00:04]}  Rc2+ {[%clk 0:00:05]} 62. Kb5 {[%clk 0:00:04]}  Rb2 {[%clk 0:00:05]} 63. Rg6+ {[%clk 0:00:05]}  Kh8 {[%clk 0:00:06]} 64. g4 {[%clk 0:00:05]}  Rb1 {[%clk 0:00:05]} 65. Ra6 {[%clk 0:00:05]}  Rxb4+ {[%clk 0:00:04]} 66. Kxb4 {[%clk 0:00:05]}  Rxa6 {[%clk 0:00:05]} 67. Rb6 {[%clk 0:00:05]}  Ra1 {[%clk 0:00:06]} 68. g5 {[%clk 0:00:06]}  Rg1 {[%clk 0:00:06]} 69. Rg6 {[%clk 0:00:04]}  Rh1 {[%clk 0:00:06]} 70. h6 {[%clk 0:00:04]}  Kh7 {[%clk 0:00:06]} 71. Rf6 {[%clk 0:00:04]}  Rg1 {[%clk 0:00:06]} 72. c6 {[%clk 0:00:03]}  Rxg5 {[%clk 0:00:06]} 73. c7 {[%clk 0:00:04]}  Rg8 {[%clk 0:00:06]} 74. Kc5 {[%clk 0:00:03]}  Rh8 {[%clk 0:00:06]} 75. Kc6 {[%clk 0:00:02]}  Rg8 {[%clk 0:00:06]} 76. Kb7 {[%clk 0:00:02]}  Rg1 {[%clk 0:00:06]} 77. c8=Q {[%clk 0:00:02]}  Rb1+ {[%clk 0:00:06]} 78. Rb6 {[%clk 0:00:02]}  Rf1 {[%clk 0:00:03]} 79. Qd7+ {[%clk 0:00:02]}  Kg8 {[%clk 0:00:02]} 80. Qg4+ {[%clk 0:00:02]}  Kf8 {[%clk 0:00:02]} 81. Qg7+ {[%clk 0:00:02]}  Ke8 {[%clk 0:00:02]} 82. Re6+ {[%clk 0:00:03]} 1-0


[Site "https://www.chess.com"]

[Event "Titled Tuesday Blitz February 21 Late 2023"]
[White "Hernandez Sanchez, Elvis De La Caridad"]
[Black "Costachi, Mihnea"]
[WhiteFideId "6400353"]
[BlackFideId "1217518"]
[WhiteElo "2243"]
[BlackElo "2476"]
[Result "1-0"]
[Round "07"]
[TimeControl "180+2"]
[Date "2023.02.21"]
[WhiteClock "0:00:26"]
[BlackClock "0:00:34"]

1. d4 {[%clk 0:03:00]}  g6 {[%clk 0:03:00]} 2. e4 {[%clk 0:02:59]}  Bg7 {[%clk 0:03:00]} 3. Nc3 {[%clk 0:02:57]}  d6 {[%clk 0:03:01]} 4. Be3 {[%clk 0:02:56]}  a6 {[%clk 0:03:01]} 5. h4 {[%clk 0:02:51]}  h5 {[%clk 0:02:58]} 6. Nh3 {[%clk 0:02:49]}  b5 {[%clk 0:02:58]} 7. Bd3 {[%clk 0:02:46]}  Nf6 {[%clk 0:02:58]} 8. f3 {[%clk 0:02:44]}  Bb7 {[%clk 0:02:59]} 9. Ng5 {[%clk 0:02:42]}  Nbd7 {[%clk 0:02:59]} 10. Qd2 {[%clk 0:02:27]}  c5 {[%clk 0:02:57]} 11. dxc5 {[%clk 0:02:20]}  dxc5 {[%clk 0:02:49]} 12. O-O-O {[%clk 0:02:17]}  c4 {[%clk 0:02:36]} 13. Be2 {[%clk 0:02:17]}  b4 {[%clk 0:02:29]} 14. Bxc4 {[%clk 0:02:12]}  O-O {[%clk 0:02:07]} 15. Nd5 {[%clk 0:02:05]}  Bxd5 {[%clk 0:01:34]} 16. Bxd5 {[%clk 0:02:06]}  Rc8 {[%clk 0:01:34]} 17. Bb3 {[%clk 0:01:47]}  Qc7 {[%clk 0:01:25]} 18. Qxb4 {[%clk 0:01:34]}  Ne5 {[%clk 0:01:15]} 19. Qb6 {[%clk 0:01:24]}  Nc4 {[%clk 0:01:06]} 20. Qxc7 {[%clk 0:01:19]}  Rxc7 {[%clk 0:01:07]} 21. Bd4 {[%clk 0:01:14]}  Rfc8 {[%clk 0:01:01]} 22. Kb1 {[%clk 0:01:08]}  Ne8 {[%clk 0:00:54]} 23. Bxg7 {[%clk 0:01:05]}  Kxg7 {[%clk 0:00:55]} 24. c3 {[%clk 0:00:57]}  e6 {[%clk 0:00:51]} 25. Bxc4 {[%clk 0:00:49]}  Rxc4 {[%clk 0:00:52]} 26. Rd7 {[%clk 0:00:49]}  R8c7 {[%clk 0:00:49]} 27. Nxe6+ {[%clk 0:00:48]}  Kf6 {[%clk 0:00:46]} 28. Nxc7 {[%clk 0:00:47]}  Nxc7 {[%clk 0:00:47]} 29. Rhd1 {[%clk 0:00:45]}  Ne6 {[%clk 0:00:48]} 30. R7d6 {[%clk 0:00:44]}  a5 {[%clk 0:00:48]} 31. Kc2 {[%clk 0:00:39]}  a4 {[%clk 0:00:47]} 32. b3 {[%clk 0:00:39]}  axb3+ {[%clk 0:00:48]} 33. axb3 {[%clk 0:00:40]}  Rc8 {[%clk 0:00:48]} 34. c4 {[%clk 0:00:38]}  Ke5 {[%clk 0:00:47]} 35. g3 {[%clk 0:00:35]}  Kf6 {[%clk 0:00:43]} 36. Kc3 {[%clk 0:00:34]}  Ke7 {[%clk 0:00:42]} 37. b4 {[%clk 0:00:31]}  Ra8 {[%clk 0:00:43]} 38. Rd7+ {[%clk 0:00:31]}  Kf6 {[%clk 0:00:43]} 39. Kb3 {[%clk 0:00:29]}  g5 {[%clk 0:00:42]} 40. hxg5+ {[%clk 0:00:29]}  Nxg5 {[%clk 0:00:43]} 41. R7d6+ {[%clk 0:00:28]}  Kg7 {[%clk 0:00:43]} 42. R1d3 {[%clk 0:00:25]}  Ne6 {[%clk 0:00:42]} 43. Rxe6 {[%clk 0:00:25]}  fxe6 {[%clk 0:00:42]} 44. b5 {[%clk 0:00:25]}  Kf6 {[%clk 0:00:43]} 45. c5 {[%clk 0:00:25]}  Ke5 {[%clk 0:00:43]} 46. Kb4 {[%clk 0:00:25]}  Ra1 {[%clk 0:00:42]} 47. b6 {[%clk 0:00:26]}  Rc1 {[%clk 0:00:35]} 48. b7 {[%clk 0:00:25]}  Rb1+ {[%clk 0:00:34]} 49. Rb3 {[%clk 0:00:25]}  Rxb3+ {[%clk 0:00:34]} 50. Kxb3 {[%clk 0:00:26]}  Kd4 {[%clk 0:00:34]} 51. b8=Q {[%clk 0:00:26]} 1-0


[Site "https://www.chess.com"]

[Event "Titled Tuesday Blitz February 21 Late 2023"]
[White "Preotu, Razvan"]
[Black "Jimenez Jimenez, Leandro"]
[WhiteFideId "2613280"]
[BlackFideId "6415253"]
[WhiteElo "2475"]
[BlackElo "2146"]
[Result "1-0"]
[Round "07"]
[TimeControl "180+2"]
[Date "2023.02.21"]
[WhiteClock "0:00:04"]
[BlackClock "0:00:01"]

1. e4 {[%clk 0:02:27]}  e5 {[%clk 0:02:58]} 2. Nf3 {[%clk 0:02:27]}  Nc6 {[%clk 0:02:58]} 3. Bc4 {[%clk 0:02:28]}  Bc5 {[%clk 0:02:58]} 4. c3 {[%clk 0:02:28]}  Nf6 {[%clk 0:02:58]} 5. d3 {[%clk 0:02:28]}  d6 {[%clk 0:02:58]} 6. O-O {[%clk 0:02:29]}  a6 {[%clk 0:02:58]} 7. a4 {[%clk 0:02:28]}  Ba7 {[%clk 0:02:58]} 8. Re1 {[%clk 0:02:28]}  h6 {[%clk 0:02:58]} 9. Nbd2 {[%clk 0:02:28]}  O-O {[%clk 0:02:58]} 10. h3 {[%clk 0:02:28]}  Re8 {[%clk 0:02:58]} 11. b4 {[%clk 0:02:28]}  Be6 {[%clk 0:02:58]} 12. Bxe6 {[%clk 0:02:29]}  Rxe6 {[%clk 0:02:58]} 13. Qc2 {[%clk 0:02:29]}  Qd7 {[%clk 0:02:47]} 14. Rb1 {[%clk 0:02:30]}  Ne7 {[%clk 0:02:38]} 15. Nf1 {[%clk 0:02:27]}  Ng6 {[%clk 0:02:38]} 16. Ng3 {[%clk 0:02:27]}  d5 {[%clk 0:02:36]} 17. c4 {[%clk 0:02:27]}  dxc4 {[%clk 0:02:31]} 18. dxc4 {[%clk 0:02:27]}  Rd8 {[%clk 0:02:22]} 19. c5 {[%clk 0:02:26]}  a5 {[%clk 0:02:21]} 20. b5 {[%clk 0:02:23]}  Qd3 {[%clk 0:02:03]} 21. Qxd3 {[%clk 0:02:10]}  Rxd3 {[%clk 0:02:04]} 22. Be3 {[%clk 0:02:11]}  Re8 {[%clk 0:01:48]} 23. b6 {[%clk 0:01:55]}  cxb6 {[%clk 0:01:46]} 24. cxb6 {[%clk 0:01:55]}  Bb8 {[%clk 0:01:45]} 25. Rb5 {[%clk 0:01:44]}  Nd7 {[%clk 0:01:33]} 26. Reb1 {[%clk 0:01:24]}  Ne7 {[%clk 0:01:01]} 27. Rxa5 {[%clk 0:01:22]}  Nc6 {[%clk 0:01:01]} 28. Ra8 {[%clk 0:01:17]}  Ra3 {[%clk 0:00:52]} 29. Nf5 {[%clk 0:01:01]}  Nf6 {[%clk 0:00:43]} 30. Nd2 {[%clk 0:00:45]}  Kh7 {[%clk 0:00:31]} 31. Nc4 {[%clk 0:00:45]}  Ra2 {[%clk 0:00:28]} 32. Ng3 {[%clk 0:00:21]}  Nd4 {[%clk 0:00:26]} 33. a5 {[%clk 0:00:16]}  Nd7 {[%clk 0:00:14]} 34. Nf5 {[%clk 0:00:11]}  Nf6 {[%clk 0:00:10]} 35. Nxd4 {[%clk 0:00:11]}  exd4 {[%clk 0:00:11]} 36. Bxd4 {[%clk 0:00:12]}  Bh2+ {[%clk 0:00:10]} 37. Kxh2 {[%clk 0:00:11]}  Rxa8 {[%clk 0:00:11]} 38. Bxf6 {[%clk 0:00:05]}  gxf6 {[%clk 0:00:12]} 39. Nd6 {[%clk 0:00:05]}  Rb8 {[%clk 0:00:07]} 40. Rb5 {[%clk 0:00:05]}  Kg7 {[%clk 0:00:07]} 41. Kg3 {[%clk 0:00:04]}  Ra3+ {[%clk 0:00:04]} 42. f3 {[%clk 0:00:05]}  Kg6 {[%clk 0:00:04]} 43. h4 {[%clk 0:00:05]}  h5 {[%clk 0:00:05]} 44. Nc4 {[%clk 0:00:03]}  Ra2 {[%clk 0:00:04]} 45. Nd6 {[%clk 0:00:03]}  Ra3 {[%clk 0:00:02]} 46. Kf4 {[%clk 0:00:03]}  Ra2 {[%clk 0:00:02]} 47. g3 {[%clk 0:00:03]}  Ra3 {[%clk 0:00:01]} 48. g4 {[%clk 0:00:03]}  hxg4 {[%clk 0:00:01]} 49. h5+ {[%clk 0:00:04]} 1-0


[Site "https://www.chess.com"]

[Event "Titled Tuesday Blitz February 21 Late 2023"]
[White "Grigoriants, Sergey"]
[Black "Defend, Balint"]
[WhiteFideId "4130804"]
[BlackFideId "17004853"]
[WhiteElo "2562"]
[BlackElo "1673"]
[Result "1-0"]
[Round "07"]
[TimeControl "180+2"]
[Date "2023.02.21"]
[WhiteClock "0:00:43"]
[BlackClock "0:00:05"]

1. d4 {[%clk 0:02:58]}  Nf6 {[%clk 0:03:00]} 2. c4 {[%clk 0:02:58]}  e6 {[%clk 0:03:00]} 3. Nc3 {[%clk 0:02:57]}  Bb4 {[%clk 0:03:00]} 4. e3 {[%clk 0:02:57]}  O-O {[%clk 0:02:57]} 5. Bd3 {[%clk 0:02:57]}  b6 {[%clk 0:02:57]} 6. Ne2 {[%clk 0:02:56]}  Bb7 {[%clk 0:02:57]} 7. O-O {[%clk 0:02:56]}  d5 {[%clk 0:02:53]} 8. cxd5 {[%clk 0:02:53]}  exd5 {[%clk 0:02:53]} 9. Bd2 {[%clk 0:02:48]}  Re8 {[%clk 0:02:48]} 10. Rc1 {[%clk 0:02:47]}  Nbd7 {[%clk 0:02:46]} 11. Nb5 {[%clk 0:02:41]}  Bxd2 {[%clk 0:02:43]} 12. Qxd2 {[%clk 0:02:42]}  Rc8 {[%clk 0:01:25]} 13. Nxa7 {[%clk 0:02:38]}  Rb8 {[%clk 0:01:25]} 14. Nc6 {[%clk 0:02:33]}  Bxc6 {[%clk 0:01:23]} 15. Rxc6 {[%clk 0:02:34]}  Ne4 {[%clk 0:01:13]} 16. Qc2 {[%clk 0:02:34]}  Rb7 {[%clk 0:01:12]} 17. Rc1 {[%clk 0:02:33]}  Qh4 {[%clk 0:01:08]} 18. Bxe4 {[%clk 0:02:21]}  dxe4 {[%clk 0:00:57]} 19. Rxc7 {[%clk 0:02:18]}  Nf6 {[%clk 0:00:56]} 20. Rxb7 {[%clk 0:02:13]}  Ng4 {[%clk 0:00:55]} 21. Ng3 {[%clk 0:01:54]}  Qxh2+ {[%clk 0:00:55]} 22. Kf1 {[%clk 0:01:55]}  Nxe3+ {[%clk 0:00:55]} 23. fxe3 {[%clk 0:01:54]}  Qxg3 {[%clk 0:00:55]} 24. Qf2 {[%clk 0:01:54]}  Qg6 {[%clk 0:00:55]} 25. Rc6 {[%clk 0:01:46]}  Qh5 {[%clk 0:00:53]} 26. g4 {[%clk 0:01:28]}  Qb5+ {[%clk 0:00:31]} 27. Kg1 {[%clk 0:01:17]}  Qd5 {[%clk 0:00:17]} 28. Rcc7 {[%clk 0:01:13]}  Rf8 {[%clk 0:00:08]} 29. b3 {[%clk 0:01:06]}  h5 {[%clk 0:00:07]} 30. Rxf7 {[%clk 0:00:45]}  Rxf7 {[%clk 0:00:06]} 31. Qxf7+ {[%clk 0:00:45]}  Qxf7 {[%clk 0:00:06]} 32. Rxf7 {[%clk 0:00:45]}  Kxf7 {[%clk 0:00:07]} 33. gxh5 {[%clk 0:00:45]}  Kf6 {[%clk 0:00:08]} 34. a4 {[%clk 0:00:46]}  Kg5 {[%clk 0:00:07]} 35. b4 {[%clk 0:00:46]}  Kxh5 {[%clk 0:00:08]} 36. a5 {[%clk 0:00:47]}  bxa5 {[%clk 0:00:08]} 37. bxa5 {[%clk 0:00:48]}  Kg4 {[%clk 0:00:09]} 38. a6 {[%clk 0:00:48]}  Kf3 {[%clk 0:00:09]} 39. a7 {[%clk 0:00:49]}  Kxe3 {[%clk 0:00:10]} 40. a8=Q {[%clk 0:00:47]}  Kxd4 {[%clk 0:00:10]} 41. Qa7+ {[%clk 0:00:47]}  Kd3 {[%clk 0:00:09]} 42. Kf2 {[%clk 0:00:48]}  g5 {[%clk 0:00:09]} 43. Qe3+ {[%clk 0:00:48]}  Kc4 {[%clk 0:00:10]} 44. Qxe4+ {[%clk 0:00:49]}  Kc3 {[%clk 0:00:08]} 45. Ke2 {[%clk 0:00:45]}  g4 {[%clk 0:00:08]} 46. Qxg4 {[%clk 0:00:45]}  Kb2 {[%clk 0:00:07]} 47. Qc4 {[%clk 0:00:45]}  Kb1 {[%clk 0:00:06]} 48. Kd2 {[%clk 0:00:42]}  Kb2 {[%clk 0:00:06]} 49. Qb4+ {[%clk 0:00:42]}  Ka2 {[%clk 0:00:05]} 50. Kc2 {[%clk 0:00:43]} 1-0


[Site "https://www.chess.com"]

[Event "Titled Tuesday Blitz February 21 Late 2023"]
[White "Klenburg, Michael"]
[Black "Mekhitarian, Krikor Sevag"]
[WhiteFideId "14102072"]
[BlackFideId "2107660"]
[WhiteElo "2325"]
[BlackElo "2537"]
[Result "0-1"]
[Round "07"]
[TimeControl "180+2"]
[Date "2023.02.21"]
[WhiteClock "0:00:01"]
[BlackClock "0:00:07"]

1. g3 {[%clk 0:02:59]}  Nf6 {[%clk 0:02:58]} 2. Bg2 {[%clk 0:03:00]}  g6 {[%clk 0:02:59]} 3. Nf3 {[%clk 0:02:58]}  Bg7 {[%clk 0:02:59]} 4. O-O {[%clk 0:02:59]}  O-O {[%clk 0:03:00]} 5. c4 {[%clk 0:02:59]}  b6 {[%clk 0:02:48]} 6. Nc3 {[%clk 0:02:57]}  Bb7 {[%clk 0:02:48]} 7. d3 {[%clk 0:02:57]}  e6 {[%clk 0:02:46]} 8. Bd2 {[%clk 0:02:44]}  c5 {[%clk 0:02:46]} 9. Qc1 {[%clk 0:02:44]}  d5 {[%clk 0:02:45]} 10. Bh6 {[%clk 0:02:42]}  d4 {[%clk 0:02:45]} 11. Bxg7 {[%clk 0:02:40]}  Kxg7 {[%clk 0:02:44]} 12. Nb5 {[%clk 0:02:40]}  Nbd7 {[%clk 0:02:37]} 13. Qf4 {[%clk 0:02:29]}  a6 {[%clk 0:02:31]} 14. Nd6 {[%clk 0:02:15]}  Bc6 {[%clk 0:02:31]} 15. Nd2 {[%clk 0:01:36]}  e5 {[%clk 0:02:19]} 16. Qh4 {[%clk 0:01:34]}  Bxg2 {[%clk 0:02:12]} 17. Kxg2 {[%clk 0:01:34]}  Qc7 {[%clk 0:02:05]} 18. N6e4 {[%clk 0:01:31]}  Qc6 {[%clk 0:01:59]} 19. f3 {[%clk 0:01:27]}  Ng8 {[%clk 0:01:54]} 20. g4 {[%clk 0:01:21]}  h6 {[%clk 0:01:53]} 21. Qg3 {[%clk 0:01:18]}  Rae8 {[%clk 0:01:51]} 22. h4 {[%clk 0:01:15]}  Kh7 {[%clk 0:01:51]} 23. g5 {[%clk 0:01:09]}  Ne7 {[%clk 0:01:41]} 24. Rh1 {[%clk 0:01:00]}  Nf5 {[%clk 0:01:39]} 25. Qh3 {[%clk 0:01:00]}  h5 {[%clk 0:01:33]} 26. Kf2 {[%clk 0:00:59]}  b5 {[%clk 0:01:31]} 27. b3 {[%clk 0:00:58]}  Rb8 {[%clk 0:01:30]} 28. Ng3 {[%clk 0:00:53]}  Ng7 {[%clk 0:01:24]} 29. Nge4 {[%clk 0:00:49]}  Ne6 {[%clk 0:01:19]} 30. Rhc1 {[%clk 0:00:49]}  Kg7 {[%clk 0:01:13]} 31. Qg3 {[%clk 0:00:39]}  Nf4 {[%clk 0:01:09]} 32. Rc2 {[%clk 0:00:32]}  b4 {[%clk 0:01:03]} 33. a4 {[%clk 0:00:25]}  bxa3 {[%clk 0:01:04]} 34. Rxa3 {[%clk 0:00:24]}  Rb6 {[%clk 0:01:04]} 35. Rca2 {[%clk 0:00:23]}  Rfb8 {[%clk 0:01:04]} 36. Ra5 {[%clk 0:00:21]}  Qc7 {[%clk 0:00:52]} 37. R2a3 {[%clk 0:00:17]}  Rc6 {[%clk 0:00:46]} 38. Rxa6 {[%clk 0:00:16]}  Rxa6 {[%clk 0:00:46]} 39. Rxa6 {[%clk 0:00:16]}  Qb7 {[%clk 0:00:47]} 40. Ra1 {[%clk 0:00:14]}  Ra8 {[%clk 0:00:48]} 41. Rxa8 {[%clk 0:00:13]}  Qxa8 {[%clk 0:00:46]} 42. Qh2 {[%clk 0:00:10]}  Qa2 {[%clk 0:00:40]} 43. Kg3 {[%clk 0:00:09]}  Qa1 {[%clk 0:00:33]} 44. Kf2 {[%clk 0:00:08]}  Qd1 {[%clk 0:00:30]} 45. Qg3 {[%clk 0:00:07]}  Qh1 {[%clk 0:00:28]} 46. Nd6 {[%clk 0:00:05]}  Qd1 {[%clk 0:00:24]} 47. N6e4 {[%clk 0:00:04]}  Qxe2+ {[%clk 0:00:17]} 48. Kg1 {[%clk 0:00:04]}  Qxd3 {[%clk 0:00:18]} 49. Qe1 {[%clk 0:00:02]}  Qc2 {[%clk 0:00:12]} 50. Kh2 {[%clk 0:00:02]}  Kg8 {[%clk 0:00:09]} 51. Kg3 {[%clk 0:00:02]}  Qd3 {[%clk 0:00:08]} 52. Qa1 {[%clk 0:00:01]}  Nf8 {[%clk 0:00:07]} 0-1


[Site "https://www.chess.com"]

[Event "Titled Tuesday Blitz February 21 Late 2023"]
[White "Petukhov, Dmitry"]
[Black "Quispe Arteaga, Gabriel"]
[WhiteFideId "4142748"]
[BlackFideId "32059809"]
[WhiteElo "2350"]
[BlackElo "2381"]
[Result "0-1"]
[Round "07"]
[TimeControl "180+2"]
[Date "2023.02.21"]
[WhiteClock "0:00:04"]
[BlackClock "0:00:31"]

1. e4 {[%clk 0:02:59]}  c5 {[%clk 0:02:59]} 2. c3 {[%clk 0:02:57]}  d5 {[%clk 0:02:58]} 3. exd5 {[%clk 0:02:58]}  Qxd5 {[%clk 0:02:58]} 4. d4 {[%clk 0:02:58]}  Nf6 {[%clk 0:02:49]} 5. Nf3 {[%clk 0:02:54]}  Bg4 {[%clk 0:02:45]} 6. Be2 {[%clk 0:02:53]}  e6 {[%clk 0:02:45]} 7. h3 {[%clk 0:02:47]}  Bh5 {[%clk 0:02:44]} 8. O-O {[%clk 0:02:47]}  Nc6 {[%clk 0:02:44]} 9. Be3 {[%clk 0:02:47]}  cxd4 {[%clk 0:02:44]} 10. cxd4 {[%clk 0:02:48]}  Be7 {[%clk 0:02:44]} 11. Nc3 {[%clk 0:02:48]}  Qd8 {[%clk 0:02:42]} 12. Qb3 {[%clk 0:02:47]}  O-O {[%clk 0:02:35]} 13. Rfd1 {[%clk 0:02:43]}  Nb4 {[%clk 0:02:33]} 14. Bg5 {[%clk 0:02:01]}  Nbd5 {[%clk 0:02:04]} 15. g4 {[%clk 0:01:41]}  Bg6 {[%clk 0:02:03]} 16. Ne5 {[%clk 0:01:39]}  Rb8 {[%clk 0:01:21]} 17. Bf3 {[%clk 0:01:31]}  Nxc3 {[%clk 0:01:16]} 18. bxc3 {[%clk 0:01:25]}  Nd7 {[%clk 0:01:10]} 19. Bxe7 {[%clk 0:01:00]}  Qxe7 {[%clk 0:01:10]} 20. Nxg6 {[%clk 0:01:01]}  hxg6 {[%clk 0:01:08]} 21. a4 {[%clk 0:00:43]}  Nf6 {[%clk 0:01:03]} 22. a5 {[%clk 0:00:36]}  Qc7 {[%clk 0:00:51]} 23. c4 {[%clk 0:00:32]}  b6 {[%clk 0:00:49]} 24. axb6 {[%clk 0:00:31]}  axb6 {[%clk 0:00:50]} 25. d5 {[%clk 0:00:26]}  exd5 {[%clk 0:00:49]} 26. Bxd5 {[%clk 0:00:27]}  Rfd8 {[%clk 0:00:45]} 27. g5 {[%clk 0:00:26]}  Nh7 {[%clk 0:00:42]} 28. h4 {[%clk 0:00:25]}  Qf4 {[%clk 0:00:39]} 29. Qf3 {[%clk 0:00:21]}  Qxh4 {[%clk 0:00:33]} 30. Qxf7+ {[%clk 0:00:19]}  Kh8 {[%clk 0:00:34]} 31. Qxg6 {[%clk 0:00:14]}  Rf8 {[%clk 0:00:34]} 32. Rd2 {[%clk 0:00:07]}  Nxg5 {[%clk 0:00:34]} 33. Kg2 {[%clk 0:00:07]}  Nh3 {[%clk 0:00:30]} 34. Rh1 {[%clk 0:00:04]}  Nf4+ {[%clk 0:00:31]} 0-1


[Site "https://www.chess.com"]

[Event "Titled Tuesday Blitz February 21 Late 2023"]
[White "Sadovsky, Artem"]
[Black "Oro, Faustino"]
[WhiteFideId "4155840"]
[BlackFideId "20000197"]
[WhiteElo "2276"]
[BlackElo "2269"]
[Result "1-0"]
[Round "07"]
[TimeControl "180+2"]
[Date "2023.02.21"]
[WhiteClock "0:01:22"]
[BlackClock "0:00:12"]

1. Nf3 {[%clk 0:02:03]}  Nf6 {[%clk 0:02:58]} 2. e3 {[%clk 0:02:04]}  b6 {[%clk 0:02:56]} 3. b3 {[%clk 0:02:05]}  Bb7 {[%clk 0:02:56]} 4. Bb2 {[%clk 0:02:06]}  e6 {[%clk 0:02:57]} 5. Be2 {[%clk 0:02:06]}  Be7 {[%clk 0:02:57]} 6. O-O {[%clk 0:02:07]}  O-O {[%clk 0:02:58]} 7. c4 {[%clk 0:02:08]}  c5 {[%clk 0:02:55]} 8. d3 {[%clk 0:02:09]}  d5 {[%clk 0:02:55]} 9. Nbd2 {[%clk 0:02:10]}  Nbd7 {[%clk 0:02:54]} 10. a3 {[%clk 0:02:10]}  Rc8 {[%clk 0:02:53]} 11. Qc2 {[%clk 0:02:11]}  Bd6 {[%clk 0:02:51]} 12. Rad1 {[%clk 0:02:12]}  Qe7 {[%clk 0:02:50]} 13. Rfe1 {[%clk 0:02:11]}  Bb8 {[%clk 0:02:49]} 14. e4 {[%clk 0:02:11]}  d4 {[%clk 0:02:42]} 15. Bc1 {[%clk 0:02:12]}  Nh5 {[%clk 0:02:36]} 16. Nf1 {[%clk 0:02:12]}  Nf4 {[%clk 0:02:32]} 17. Ng3 {[%clk 0:02:09]}  f6 {[%clk 0:02:16]} 18. Bd2 {[%clk 0:02:10]}  Qf7 {[%clk 0:02:14]} 19. Qc1 {[%clk 0:02:10]}  Nxe2+ {[%clk 0:02:12]} 20. Rxe2 {[%clk 0:02:07]}  Rfe8 {[%clk 0:01:55]} 21. Bf4 {[%clk 0:01:54]}  e5 {[%clk 0:01:49]} 22. Bd2 {[%clk 0:01:53]}  Nf8 {[%clk 0:01:47]} 23. Nf5 {[%clk 0:01:53]}  Ne6 {[%clk 0:01:42]} 24. h4 {[%clk 0:01:50]}  h5 {[%clk 0:01:40]} 25. g3 {[%clk 0:01:50]}  Kh7 {[%clk 0:01:39]} 26. Nh2 {[%clk 0:01:45]}  Rcd8 {[%clk 0:01:30]} 27. f3 {[%clk 0:01:45]}  Bc8 {[%clk 0:01:27]} 28. g4 {[%clk 0:01:45]}  hxg4 {[%clk 0:01:27]} 29. fxg4 {[%clk 0:01:44]}  Nf4 {[%clk 0:01:27]} 30. Bxf4 {[%clk 0:01:44]}  exf4 {[%clk 0:01:27]} 31. h5 {[%clk 0:01:43]}  g6 {[%clk 0:01:25]} 32. hxg6+ {[%clk 0:01:43]}  Qxg6 {[%clk 0:01:26]} 33. Nf3 {[%clk 0:01:43]}  Bxf5 {[%clk 0:01:08]} 34. Rh2+ {[%clk 0:01:40]}  Kg7 {[%clk 0:01:00]} 35. Nh4 {[%clk 0:01:37]}  Qxg4+ {[%clk 0:00:38]} 36. Rg2 {[%clk 0:01:37]}  Bc8 {[%clk 0:00:38]} 37. Nf5+ {[%clk 0:01:23]}  Bxf5 {[%clk 0:00:37]} 38. exf5 {[%clk 0:01:24]}  Qxg2+ {[%clk 0:00:38]} 39. Kxg2 {[%clk 0:01:24]}  Re3 {[%clk 0:00:38]} 40. Kf2 {[%clk 0:01:22]}  Rh8 {[%clk 0:00:34]} 41. Rh1 {[%clk 0:01:21]}  Rhe8 {[%clk 0:00:26]} 42. Qg1+ {[%clk 0:01:22]}  Rg3 {[%clk 0:00:27]} 43. Qh2 {[%clk 0:01:22]}  f3 {[%clk 0:00:11]} 44. Qh7+ {[%clk 0:01:21]}  Kf8 {[%clk 0:00:11]} 45. Qh8+ {[%clk 0:01:21]}  Ke7 {[%clk 0:00:11]} 46. Re1+ {[%clk 0:01:20]}  Be5 {[%clk 0:00:11]} 47. Rxe5+ {[%clk 0:01:21]}  fxe5 {[%clk 0:00:11]} 48. Qxe5+ {[%clk 0:01:21]}  Kd7 {[%clk 0:00:12]} 49. Qxg3 {[%clk 0:01:22]} 1-0


[Site "https://www.chess.com"]